bitfinex/quotes_SOLUSD_20240714
["timestamp","ask_amount","ask_price","bid_price","bid_amount"]
[1720960862350,34.273,144.47,144.37,1.38516776]
[1720960862556,51.9227,144.46,144.37,1.38516776]
[1720960862757,51.9227,144.46,144.36,15.0664]
[1720960864879,51.9227,144.46,144.37,1.3849859]
[1720960865180,7.7833212,144.48,144.38,15.0664]
[1720960866061,0.8617212,144.48,144.4,16.5983]
[1720960866261,0.8617212,144.48,144.42,16.5983]
[1720960866467,0.8617212,144.48,144.43,1.38457642]
[1720960866876,0.8617212,144.48,144.42,16.5983]
[1720960867381,7.7833212,144.48,144.42,16.5983]
[1720960867594,0.8617212,144.48,144.42,16.5983]
[1720960869365,0.8617212,144.48,144.43,1.38448313]
[1720960869564,0.8617212,144.48,144.42,16.5983]
[1720960871397,0.8617212,144.48,144.43,1.38443694]
[1720960871777,0.8617212,144.48,144.42,16.5983]
[1720960874273,6.9218,144.47,144.42,16.5983]
[1720960877389,0.8617212,144.48,144.43,1.38461811]
[1720960877390,7.7830212,144.48,144.43,1.38461811]
[1720960877575,7.7830212,144.48,144.42,16.5983]
[1720960879690,45.0,144.47,144.42,16.5983]
[1720960879872,0.8617212,144.48,144.43,1.38464208]
[1720960880213,7.7833212,144.48,144.43,1.38464208]
[1720960881608,0.8617212,144.48,144.42,16.5983]
[1720960882673,0.8617212,144.48,144.43,1.38442584]
[1720960883498,0.8617212,144.48,144.42,16.5983]
[1720960889125,0.8617212,144.48,144.43,1.38442805]
[1720960889422,0.8617212,144.48,144.42,16.5983]
[1720960891020,0.8617212,144.48,144.39,6.0162]
[1720960891021,219.43644498,144.5,144.45,15.147]
[1720960891517,219.43644498,144.5,144.46,6.9222]
[1720960892221,219.43644498,144.5,144.45,15.147]
[1720960892527,219.43644498,144.5,144.47,6.9217]
[1720960893022,219.43644498,144.5,144.47,6.9214]
[1720960893228,219.43644498,144.5,144.45,15.147]
[1720960894630,226.35684498,144.5,144.46,6.9222]
[1720960896409,226.35684498,144.5,144.41,15.147]
[1720960896410,219.43644498,144.5,144.41,15.147]
[1720960896629,45.0,144.49,144.41,15.147]
[1720960896918,6.9216,144.48,144.41,15.147]
[1720960897228,65.84,144.47,144.37,15.147]
[1720960897531,6.9245,144.42,144.37,15.147]
[1720960897744,20.84,144.44,144.31,6.5173]
[1720960897745,20.84,144.4,144.33,15.147]
[1720960898107,51.4516,144.41,144.33,15.147]
[1720960898108,65.84,144.39,144.33,15.147]
[1720960898452,45.0,144.39,144.33,15.147]
[1720960898743,27.2916,144.41,144.34,6.9276]
[1720960898744,45.0,144.4,144.34,6.9276]
[1720960898945,6.926,144.39,144.34,6.9276]
[1720960899244,6.9243,144.42,144.37,6.9265]
[1720960899530,20.84,144.45,144.35,1.38567756]
[1720960899906,20.84,144.45,144.36,1.38523625]
[1720960900103,6.9236,144.44,144.39,6.9256]
[1720960900827,6.9236,144.44,144.4,6.9251]
[1720960901608,6.9236,144.44,144.39,6.9256]
[1720960902019,6.9239,144.43,144.39,6.9256]
[1720960903118,6.9243,144.42,144.37,6.9262]
[1720960903314,47.32213366,144.46,144.37,6.9262]
[1720960903534,20.84,144.44,144.37,6.9262]
[1720960903736,45.0,144.43,144.37,6.9262]
[1720960903927,6.9247,144.42,144.37,6.9262]
[1720960904126,6.9247,144.41,144.37,6.9262]
[1720960904325,30.0,144.4,144.37,6.9262]
[1720960904925,6.9247,144.41,144.37,6.9262]
[1720960905509,51.9253,144.4,144.33,15.147]
[1720960905829,51.9253,144.4,144.34,1.38546488]
[1720960905830,6.9253,144.4,144.34,1.38546488]
[1720960906132,6.9248,144.41,144.36,6.9269]
[1720960906645,6.9243,144.42,144.33,15.147]
[1720960906845,45.0,144.41,144.37,6.9265]
[1720960907526,51.9247,144.41,144.37,6.9265]
[1720960908020,51.9247,144.41,144.33,15.147]
[1720960908021,6.9255,144.4,144.33,15.147]
[1720960908216,6.926,144.39,144.34,6.928]
[1720960908628,45.0,144.38,144.34,6.928]
[1720960909526,6.926,144.39,144.35,6.9274]
[1720960910521,6.926,144.39,144.34,6.9279]
[1720960910727,20.84,144.43,144.34,6.9279]
[1720960910728,6.9262,144.38,144.34,6.9279]
[1720960910909,6.9267,144.37,144.33,15.147]
[1720960911724,6.9264,144.38,144.33,22.0751]
[1720960911926,6.9268,144.37,144.33,22.0751]
[1720960912430,51.9272,144.36,144.33,15.147]
[1720960912621,6.9272,144.36,144.33,15.147]
[1720960914623,6.9267,144.37,144.33,15.147]
[1720960915524,6.9267,144.37,144.33,22.0754]
[1720960917333,6.9272,144.36,144.33,15.147]
[1720960918520,6.9272,144.36,144.32,6.929]
[1720960919327,6.9279,144.35,144.3,23.4835]
[1720960919838,38.1558,144.38,144.3,23.4835]
[1720960920028,6.9277,144.35,144.3,23.4835]
[1720960920228,6.9281,144.34,144.3,23.4835]
[1720960922851,45.0,144.33,144.3,23.4835]
[1720960923039,6.9281,144.34,144.3,23.4835]
[1720960923239,6.9275,144.36,144.31,6.9294]
[1720960923435,45.0,144.35,144.32,6.9286]
[1720960923834,6.9267,144.37,144.32,6.9286]
[1720960924351,6.9271,144.36,144.32,6.9286]
[1720960924758,9.18169761,144.39,144.3,16.554]
[1720960924937,6.9266,144.37,144.3,22.7701]
[1720960926064,6.9266,144.37,144.33,6.9284]
[1720960926568,6.9266,144.38,144.33,6.9284]
[1720960926928,38.1522,144.41,144.34,6.928]
[1720960927154,45.0,144.4,144.34,6.928]
[1720960927350,38.1522,144.41,144.3,22.7701]
[1720960927351,38.1522,144.41,144.33,6.9284]
[1720960927934,40.91769729,144.41,144.33,6.9284]
[1720960928566,6.9267,144.37,144.33,6.9284]
[1720960928755,6.9271,144.36,144.32,6.9289]
[1720960931264,6.9267,144.37,144.32,6.9289]
[1720960932344,6.9262,144.38,144.33,6.9281]
[1720960932945,6.927,144.37,144.3,22.7701]
[1720960934560,6.927,144.37,144.33,6.9284]
[1720960934764,20.84,144.38,144.3,22.7701]
[1720960934935,6.928,144.35,144.3,29.6999]
[1720960935255,6.9282,144.34,144.3,16.554]
[1720960936247,6.9276,144.35,144.3,16.554]
[1720960936559,45.0,144.34,144.3,23.4839]
[1720960937558,51.9285,144.34,144.3,23.4839]
[1720960938839,51.9285,144.34,144.3,16.554]
[1720960939049,6.9286,144.33,144.3,16.554]
[1720960939239,45.0,144.34,144.27,22.2993]
[1720960939441,65.84,144.35,144.27,22.2993]
[1720960939633,6.9293,144.32,144.28,6.9307]
[1720960939845,6.9293,144.32,144.27,15.3684]
[1720960940044,6.9293,144.32,144.28,6.9307]
[1720960941054,6.9286,144.33,144.28,6.9307]
[1720960941276,45.0,144.32,144.28,6.9307]
[1720960941772,65.84,144.32,144.27,15.3684]
[1720960942642,6.93,144.3,144.27,15.3684]
[1720960943237,6.9295,144.31,144.27,22.2998]
[1720960943639,6.9295,144.31,144.27,15.3684]
[1720960943846,6.9301,144.3,144.27,15.3684]
[1720960944250,6.9301,144.3,144.26,6.9318]
[1720960945641,6.9301,144.3,144.25,6.9322]
[1720960946865,17.3194,144.35,144.25,6.9322]
[1720960946866,17.3194,144.35,144.25,1.38630352]
[1720960947853,17.3194,144.35,144.24,15.3684]
[1720960948060,6.9286,144.33,144.29,6.9302]
[1720960948769,17.3161,144.38,144.3,16.82492453]
[1720960949262,6.9281,144.34,144.3,16.82492453]
[1720960949474,6.9281,144.34,144.3,15.4389]
[1720960949651,6.9276,144.35,144.3,16.82471976]
[1720960950066,6.9272,144.36,144.3,16.82471976]
[1720960950252,6.9277,144.35,144.3,23.75431976]
[1720960951069,38.1761,144.38,144.3,15.4389]
[1720960951245,45.0,144.37,144.3,15.4389]
[1720960952648,6.9285,144.33,144.3,15.4389]
[1720960953147,6.9281,144.34,144.3,15.4389]
[1720960953969,6.9281,144.34,144.3,22.3688]
[1720960958176,6.9275,144.36,144.31,6.9294]
[1720960960272,6.9278,144.35,144.31,6.9294]
[1720960961074,6.929,144.32,144.3,15.4389]
[1720960962976,6.9283,144.34,144.3,22.3686]
[1720960963174,6.9283,144.34,144.3,15.4389]
[1720960963568,6.9283,144.34,144.3,22.3687]
[1720960965175,6.9288,144.33,144.3,15.4389]
[1720960966680,6.9282,144.34,144.3,15.4389]
[1720960970009,17.3172,144.37,144.3,15.4389]
[1720960970300,6.9284,144.34,144.3,22.3687]
[1720960970677,6.9277,144.35,144.31,6.9294]
[1720960971672,6.9282,144.34,144.3,15.4389]
[1720960972084,29.87028045,144.4,144.31,1.38583526]
[1720960972085,47.18418045,144.4,144.31,1.38583526]
[1720960972270,26.32418045,144.4,144.31,1.38583526]
[1720960972471,6.9274,144.36,144.32,6.9289]
[1720960972670,45.0,144.39,144.31,1.38583526]
[1720960973282,6.9281,144.34,144.3,28.4006]
[1720960973486,6.9276,144.35,144.31,6.9295]
[1720960973793,62.315,144.39,144.31,1.38567405]
[1720960974603,62.315,144.39,144.3,21.4708]
[1720960975492,83.175,144.39,144.3,21.4708]
[1720960975897,6.9277,144.35,144.3,21.4708]
[1720960976670,6.9282,144.34,144.3,22.3684]
[1720960978192,6.9293,144.32,144.3,15.4389]
[1720960979087,6.9287,144.33,144.3,15.4389]
[1720960980892,6.929,144.32,144.3,15.4389]
[1720960985391,17.3184,144.36,144.3,15.4389]
[1720960985595,45.0,144.35,144.3,15.4389]
[1720960985800,20.86,144.38,144.3,15.4389]
[1720960985980,6.9281,144.34,144.3,22.3688]
[1720960986293,6.9287,144.33,144.3,15.4389]
[1720960986495,6.929,144.32,144.3,15.4389]
[1720960987291,38.1802,144.35,144.27,6.0319]
[1720960987494,45.0,144.34,144.27,6.0319]
[1720960988401,6.9293,144.32,144.28,6.9309]
[1720960989818,6.9293,144.32,144.27,12.9632]
[1720960992413,6.9293,144.32,144.28,6.9307]
[1720960994395,6.9287,144.33,144.28,6.9307]
[1720960994595,6.9287,144.33,144.29,6.9301]
[1720960994788,51.9282,144.34,144.29,6.9301]
[1720960995644,6.9286,144.33,144.29,6.9301]
[1720960996325,51.9281,144.34,144.27,7.41795705]
[1720960997043,51.9281,144.34,144.29,6.9303]
[1720960999743,51.9281,144.34,144.3,6.9298]
[1720960999923,6.9281,144.34,144.3,6.9298]
[1720961000564,6.9281,144.34,144.29,6.9303]
[1720961001775,38.1802,144.34,144.26,16.1311]
[1720961001970,6.9305,144.29,144.26,16.1311]
[1720961002756,6.9301,144.3,144.26,16.1311]
[1720961002956,6.9305,144.29,144.26,16.1311]
[1720961003750,6.9301,144.3,144.26,23.0627]
[1720961008788,6.9312,144.28,144.21,16.4021]
[1720961009077,6.9316,144.27,144.22,6.9334]
[1720961009274,6.9316,144.27,144.23,6.9331]
[1720961009469,6.9309,144.28,144.24,6.9327]
[1720961009771,6.9305,144.29,144.25,6.9322]
[1720961010590,6.9311,144.28,144.24,6.9326]
[1720961011762,6.1512,144.3,144.21,16.4021]
[1720961012093,6.9305,144.29,144.25,6.9323]
[1720961012781,6.1512,144.3,144.21,16.4021]
[1720961012991,6.9309,144.28,144.24,6.9325]
[1720961014773,6.9314,144.27,144.23,6.9332]
[1720961016705,6.9312,144.28,144.24,6.9328]
[1720961017192,6.9312,144.28,144.23,6.9331]
[1720961019517,6.9299,144.31,144.21,16.4021]
[1720961019684,45.0,144.3,144.25,6.9323]
[1720961020212,6.9305,144.29,144.25,6.9323]
[1720961020791,6.9305,144.29,144.26,16.3054]
[1720961021126,6.9301,144.3,144.26,16.3054]
[1720961023497,6.9301,144.3,144.26,23.2372]
[1720961025221,6.9305,144.29,144.26,16.3054]
[1720961027730,6.9305,144.29,144.26,17.69172797]
[1720961028026,6.9305,144.29,144.26,16.3054]
[1720961028531,6.93,144.3,144.26,24.62345062]
[1720961029135,6.9304,144.29,144.26,17.69165062]
[1720961029360,6.9304,144.29,144.26,17.69158445]
[1720961030039,6.9338,144.22,144.21,0.2]
[1720961030194,16.0882,144.27,144.15,15.5776]
[1720961030195,6.9362,144.17,144.15,15.5776]
[1720961032936,6.9357,144.18,144.15,15.5776]
[1720961035752,6.9353,144.19,144.15,15.5776]
[1720961036644,6.9353,144.19,144.15,22.5147]
[1720961037452,6.9353,144.19,144.15,15.5776]
[1720961040170,6.9346,144.21,144.16,6.9365]
[1720961041082,6.9348,144.2,144.16,6.9365]
[1720961041973,6.9344,144.21,144.17,6.9359]
[1720961044174,6.9339,144.22,144.17,6.9359]
[1720961044961,6.933,144.24,144.18,1.38703961]
[1720961045184,6.9324,144.25,144.2,6.9344]
[1720961045377,6.9324,144.25,144.21,6.9341]
[1720961045760,6.9329,144.24,144.16,6.1639]
[1720961045985,6.9329,144.24,144.2,6.9345]
[1720961046286,6.9325,144.25,144.2,6.9345]
[1720961046661,6.9316,144.27,144.22,6.9334]
[1720961046991,2.78762885,144.28,144.16,6.1639]
[1720961047161,6.9325,144.25,144.21,6.9339]
[1720961048961,70.7588,144.29,144.16,7.55061688]
[1720961049163,65.86,144.28,144.16,7.55061688]
[1720961049370,6.9325,144.25,144.2,6.9343]
[1720961051986,6.9325,144.25,144.21,15.6125]
[1720961052176,6.9337,144.23,144.21,15.6125]
[1720961055081,6.9329,144.24,144.21,15.6125]
[1720961056577,6.9324,144.25,144.21,22.5467]
[1720961057692,6.932,144.26,144.22,6.9334]
[1720961058272,62.3282,144.28,144.21,15.6125]
[1720961058467,6.9325,144.25,144.21,22.5466]
[1720961059589,6.9319,144.26,144.22,6.9334]
[1720961062396,6.9324,144.25,144.21,22.5467]
[1720961062777,6.932,144.26,144.22,6.9336]
[1720961064415,6.9329,144.24,144.2,6.9347]
[1720961064699,65.86,144.28,144.2,6.9343]
[1720961064700,6.9325,144.25,144.2,6.9343]
[1720961066414,6.9325,144.25,144.21,6.9342]
[1720961067489,66.49550159,144.28,144.18,15.6125]
[1720961067490,6.9318,144.27,144.22,6.9336]
[1720961067691,45.0,144.26,144.22,6.9336]
[1720961067891,51.9319,144.26,144.22,6.9336]
[1720961071615,45.0,144.26,144.23,6.9333]
[1720961074432,51.9319,144.26,144.22,6.9337]
[1720961075821,6.9328,144.25,144.18,16.99937815]
[1720961076123,6.9328,144.25,144.18,15.6125]
[1720961076321,6.9328,144.25,144.21,6.934]
[1720961077306,51.9319,144.26,144.22,6.9337]
[1720961077909,6.9325,144.25,144.21,6.9342]
[1720961079016,6.9332,144.24,144.18,15.6125]
[1720961080012,6.9332,144.24,144.2,6.9345]
[1720961080421,6.9325,144.25,144.21,6.9342]
[1720961080614,51.9321,144.26,144.22,6.9337]
[1720961080814,6.9324,144.25,144.21,6.9342]
[1720961081219,51.932,144.26,144.22,6.9336]
[1720961082319,6.9324,144.25,144.21,6.9342]
[1720961084516,6.9321,144.26,144.22,6.9336]
[1720961084810,6.9324,144.25,144.21,6.9343]
[1720961085217,6.932,144.26,144.22,6.9338]
[1720961085603,6.932,144.26,144.21,6.9339]
[1720961085934,6.9324,144.25,144.21,6.9339]
[1720961087109,6.9317,144.27,144.22,6.9335]
[1720961087720,6.9317,144.27,144.23,6.9333]
[1720961087921,0.63550159,144.28,144.18,15.6125]
[1720961088116,45.63550159,144.28,144.18,15.6125]
[1720961090733,6.932,144.26,144.22,6.9336]
[1720961091235,6.9315,144.27,144.22,6.9336]
[1720961091432,6.9315,144.27,144.23,6.9331]
[1720961092837,6.9315,144.27,144.22,6.9337]
[1720961093329,6.932,144.26,144.22,6.9337]
[1720961094026,0.63550159,144.28,144.23,8.3198868]
[1720961094332,6.931,144.28,144.23,8.3198868]
[1720961094927,6.931,144.28,144.23,23.9503868]
[1720961095740,6.931,144.28,144.24,6.9327]
[1720961096035,6.931,144.28,144.25,1.38629529]
[1720961096228,5.96943796,144.32,144.25,6.9321]
[1720961096229,6.9302,144.3,144.25,6.9321]
[1720961096619,6.9306,144.29,144.25,6.9321]
[1720961097118,6.9306,144.29,144.26,1.38624051]
[1720961098253,6.9297,144.31,144.27,6.9314]
[1720961098735,6.9297,144.31,144.28,1.38603616]
[1720961099738,6.9297,144.31,144.27,6.9314]
[1720961099938,6.9297,144.31,144.28,1.38603208]
[1720961100840,6.9297,144.31,144.27,6.9314]
[1720961103430,17.3209,144.34,144.23,15.6305]
[1720961103635,45.0,144.33,144.24,20.0]
[1720961103845,45.0,144.33,144.25,1.38619187]
[1720961104235,45.0,144.33,144.24,20.0]
[1720961104436,6.9297,144.31,144.26,6.9315]
[1720961105460,6.9297,144.31,144.27,6.9312]
[1720961105830,45.0,144.33,144.25,1.38619179]
[1720961106153,27.026,144.36,144.25,1.38619179]
[1720961106355,45.0,144.35,144.25,1.38619179]
[1720961107156,45.0,144.35,144.24,20.0]
[1720961107457,45.0,144.35,144.26,1.38605064]
[1720961107626,6.9286,144.33,144.29,6.9304]
[1720961110334,6.9291,144.32,144.28,6.9309]
[1720961112466,6.9282,144.34,144.29,6.93]
[1720961113643,6.9282,144.34,144.3,6.9298]
[1720961114033,27.026,144.36,144.28,16.407]
[1720961115167,6.166,144.36,144.28,16.407]
[1720961115354,51.928,144.35,144.31,6.9294]
[1720961116154,6.9281,144.34,144.28,16.407]
[1720961119147,83.1801,144.35,144.25,16.407]
[1720961119643,6.93,144.3,144.26,6.9318]
[1720961120450,6.9295,144.31,144.27,6.9313]
[1720961123154,65.86,144.35,144.25,16.407]
[1720961123355,45.0,144.35,144.26,1.38612843]
[1720961123572,6.9285,144.34,144.29,6.9303]
[1720961123769,45.0,144.33,144.29,6.9303]
[1720961124155,51.9286,144.33,144.29,6.9303]
[1720961127152,6.9286,144.33,144.29,6.9303]
[1720961129877,6.9287,144.33,144.29,6.9304]
[1720961131565,6.166,144.36,144.3,1.38592606]
[1720961131891,10.52284854,144.37,144.28,16.1541]
[1720961131892,6.928,144.35,144.28,16.1541]
[1720961132092,6.928,144.35,144.29,1.38577957]
[1720961132275,6.9268,144.37,144.32,6.9286]
[1720961132669,6.9268,144.37,144.33,1.38558945]
[1720961133592,6.9268,144.37,144.33,8.31398945]
[1720961133762,6.9268,144.37,144.33,24.46808945]
[1720961136163,6.9268,144.37,144.33,17.53968945]
[1720961136365,6.9276,144.35,144.33,16.1541]
[1720961137684,6.9272,144.36,144.33,16.1541]
[1720961138966,45.0,144.4,144.33,23.0822]
[1720961139172,6.9262,144.38,144.33,16.1541]
[1720961139499,45.0,144.4,144.33,16.1541]
[1720961139663,6.9252,144.4,144.36,6.927]
[1720961140491,6.9257,144.39,144.35,6.9275]
[1720961140787,6.9253,144.4,144.36,6.9268]
[1720961142967,6.9248,144.41,144.36,6.9268]
[1720961143171,6.9248,144.41,144.34,1.38541864]
[1720961143379,6.9248,144.41,144.37,6.9265]
[1720961146301,6.9248,144.41,144.37,22.0378]
[1720961146986,6.9242,144.43,144.38,6.926]
[1720961147506,6.9243,144.42,144.38,6.926]
[1720961148091,38.1666,144.46,144.37,15.1113]
[1720961148092,6.9248,144.41,144.37,15.1113]
[1720961148304,6.9254,144.4,144.37,15.1113]
[1720961149611,6.9248,144.41,144.37,15.1113]
[1720961150607,6.9256,144.4,144.37,15.1113]
[1720961150808,6.9248,144.41,144.37,15.1113]
[1720961151006,6.9248,144.41,144.37,22.0377]
[1720961152308,6.9243,144.42,144.38,6.926]
[1720961153294,6.9247,144.41,144.37,22.0376]
[1720961157030,6.9243,144.42,144.38,6.9261]
[1720961157719,6.9243,144.42,144.38,8.31115022]
[1720961159110,6.9238,144.43,144.39,6.9253]
[1720961159899,31.24208744,144.47,144.4,1.38496872]
[1720961160116,17.3055,144.47,144.38,1.3848378]
[1720961161115,45.0,144.46,144.38,1.3848378]
[1720961161410,6.9229,144.45,144.41,6.9247]
[1720961162128,6.9229,144.45,144.42,1.38475756]
[1720961162309,6.9223,144.46,144.42,23.42015756]
[1720961162515,6.9223,144.46,144.42,22.0354]
[1720961166933,6.9228,144.45,144.42,15.1113]
[1720961167623,6.9224,144.46,144.42,15.1113]
[1720961167815,6.9224,144.46,144.42,22.0354]
[1720961169022,17.5026,144.49,144.42,22.0354]
[1720961169327,6.9225,144.46,144.42,22.0354]
[1720961169526,6.9225,144.46,144.42,15.1113]
[1720961170033,6.9225,144.46,144.42,22.0354]
[1720961170832,6.922,144.47,144.42,22.0354]
[1720961171331,6.922,144.47,144.43,6.9237]
[1720961174439,0.2,144.49,144.42,15.1113]
[1720961174735,6.9224,144.46,144.42,22.0355]
[1720961175316,6.9229,144.45,144.42,15.1113]
[1720961178339,6.9222,144.47,144.43,1.38478092]
[1720961178644,6.9222,144.47,144.42,15.1113]
[1720961178848,0.2,144.49,144.42,15.1113]
[1720961178849,6.9223,144.46,144.42,22.0354]
[1720961180847,0.2,144.49,144.42,15.1113]
[1720961181052,6.9252,144.4,144.38,16.6637]
[1720961181229,6.9251,144.41,144.38,16.6637]
[1720961181428,6.9247,144.41,144.38,16.6637]
[1720961182821,6.9243,144.42,144.38,16.6637]
[1720961183725,6.9237,144.44,144.38,18.04884187]
[1720961183927,6.9237,144.44,144.38,16.6637]
[1720961184129,6.9237,144.44,144.4,6.925]
[1720961184442,6.9223,144.46,144.39,1.38496867]
[1720961184646,6.9223,144.46,144.41,6.9246]
[1720961184946,6.9223,144.46,144.42,6.9241]
[1720961185260,6.9223,144.46,144.39,6.019]
[1720961186547,6.9223,144.46,144.4,1.38480512]
[1720961187067,6.9223,144.46,144.39,6.019]
[1720961187470,6.9223,144.46,144.4,1.38480565]
[1720961187629,6.9223,144.46,144.42,6.9241]
[1720961188032,20.86,144.48,144.4,6.925]
[1720961188230,45.0,144.47,144.4,6.925]
[1720961188856,6.9229,144.45,144.4,6.925]
[1720961190961,6.9229,144.45,144.4,6.9248]
[1720961191147,6.9229,144.45,144.38,16.6637]
[1720961192053,6.9241,144.43,144.38,16.6637]
[1720961192359,6.9243,144.42,144.38,16.6637]
[1720961192564,45.0,144.41,144.35,6.9274]
[1720961192737,6.9252,144.4,144.35,6.9274]
[1720961193068,45.0,144.42,144.34,15.855]
[1720961193237,65.86,144.42,144.34,15.855]
[1720961193440,20.86,144.42,144.34,15.855]
[1720961193639,6.9262,144.38,144.34,15.855]
[1720961193861,20.86,144.39,144.3,15.855]
[1720961194046,45.0,144.38,144.3,15.855]
[1720961195559,45.0,144.38,144.32,6.9289]
[1720961195560,6.9267,144.37,144.32,6.9289]
[1720961195744,6.928,144.35,144.26,17.24084292]
[1720961195954,6.928,144.35,144.3,6.9295]
[1720961197369,6.927,144.37,144.31,6.9291]
[1720961197563,45.0,144.36,144.31,6.9291]
[1720961197978,6.9259,144.39,144.32,17.24087524]
[1720961198267,6.9252,144.4,144.35,6.9276]
[1720961198451,6.9252,144.4,144.32,15.855]
[1720961198652,9.08935889,144.43,144.32,15.855]
[1720961198653,27.3117,144.42,144.32,15.855]
[1720961198864,6.9265,144.38,144.32,15.855]
[1720961199048,6.9265,144.38,144.33,6.9284]
[1720961199468,51.9267,144.37,144.32,22.784]
[1720961200656,51.9267,144.37,144.33,6.9285]
[1720961201153,6.928,144.35,144.27,15.855]
[1720961201352,45.0,144.34,144.27,15.855]
[1720961202173,6.928,144.35,144.27,15.855]
[1720961202381,45.0,144.34,144.27,15.855]
[1720961204257,6.3463,144.37,144.27,15.855]
[1720961204569,45.0,144.36,144.27,15.855]
[1720961205363,6.9276,144.35,144.3,6.9296]
[1720961205782,51.9271,144.36,144.27,15.855]
[1720961205986,6.9277,144.35,144.31,6.9294]
[1720961206963,6.9277,144.35,144.27,17.2409708]
[1720961206964,45.0,144.36,144.27,15.855]
[1720961207169,51.9282,144.34,144.29,6.9304]
[1720961207487,6.9282,144.34,144.29,6.9304]
[1720961208160,6.9282,144.34,144.3,6.9299]
[1720961209604,45.0,144.33,144.3,6.9299]
[1720961210590,6.9295,144.31,144.26,6.9315]
[1720961210759,6.9291,144.32,144.27,6.9309]
[1720961210963,45.0,144.31,144.27,6.9309]
[1720961211163,45.0,144.31,144.21,15.3558]
[1720961211164,45.0,144.31,144.28,6.9307]
[1720961211365,6.9282,144.34,144.29,6.93]
[1720961211677,45.0,144.33,144.29,6.93]
[1720961211881,51.9288,144.33,144.29,6.93]
[1720961213272,6.93,144.3,144.23,15.3558]
[1720961213478,20.86,144.32,144.27,6.931]
[1720961213686,45.0,144.31,144.28,6.9307]
[1720961214384,45.0,144.32,144.28,6.9307]
[1720961214686,45.0,144.32,144.29,6.9304]
[1720961214901,51.929,144.32,144.28,6.9309]
[1720961215786,45.0,144.32,144.29,6.9303]
[1720961215966,72.7886,144.33,144.29,6.9303]
[1720961216798,72.3676,144.33,144.23,15.3558]
[1720961217296,27.7896,144.31,144.26,6.9319]
[1720961217473,45.0,144.3,144.26,6.9319]
[1720961217672,45.0,144.3,144.28,6.9309]
[1720961217876,45.0,144.31,144.27,6.9313]
[1720961218070,6.9303,144.3,144.23,15.3558]
[1720961218392,45.0,144.29,144.26,6.9315]
[1720961218988,45.0,144.29,144.23,15.3558]
[1720961219186,6.9295,144.32,144.28,6.9309]
[1720961219388,45.0,144.31,144.28,6.9309]
[1720961220486,6.9303,144.3,144.23,15.3558]
[1720961220674,45.0,144.29,144.23,15.3558]
[1720961220873,6.9301,144.3,144.25,6.9319]
[1720961221203,45.0,144.29,144.25,6.9319]
[1720961221575,51.9305,144.29,144.25,6.9319]
[1720961222110,45.0,144.29,144.26,6.9318]
[1720961222601,6.9314,144.27,144.23,6.9332]
[1720961222806,45.0,144.26,144.23,6.9332]
[1720961223470,45.0,144.26,144.2,22.564]
[1720961223672,65.86,144.26,144.2,15.8981]
[1720961223916,6.9326,144.25,144.21,6.9341]
[1720961224085,45.0,144.24,144.22,6.9337]
[1720961224477,51.9328,144.25,144.2,15.8981]
[1720961224678,51.9328,144.25,144.21,6.9341]
[1720961225708,45.0,144.25,144.22,6.9336]
[1720961225899,51.9319,144.26,144.22,6.9336]